fUSD/lending_fUSD_20250618
["ID","MTS","AMOUNT","RATE_DAILY","PERIOD"]
[366392839,1750228280259,-2075.66,0.00016931,2]
[366392840,1750228280270,-462.37675867,0.00016931,2]
[366392841,1750228280281,-10858.51,0.00016931,2]
[366392842,1750228280291,-4982.32,0.00016931,2]
[366392843,1750228280302,-490.0,0.00016931,2]
[366392844,1750228280312,-490.0,0.00016931,2]
[366392845,1750228280323,-490.0,0.00016931,2]
[366392846,1750228280334,-1003.5,0.00016931,2]
[366392847,1750228280345,-490.0,0.00016931,2]
[366392848,1750228280355,-2307.71,0.00016931,2]
[366392849,1750228280365,-490.0,0.00016931,2]
[366392850,1750228280375,-8039.51903929,0.00016931,2]
[366392851,1750228280388,-13740.87096071,0.00016931,2]
[366392852,1750228280399,-1057.56,0.00016931,2]
[366392853,1750228280409,-563.48,0.00016931,2]
[366392854,1750228280419,-962.03,0.00016931,2]
[366392855,1750228280430,-490.0,0.00016931,2]
[366392856,1750228280440,-744.81,0.00016931,2]
[366392857,1750228280450,-490.0,0.00016931,2]
[366392858,1750228280460,-5129.16100349,0.00016931,2]
[366392859,1750228281435,-204.72799348,0.00016338,2]
[366392860,1750228281447,-4809.41899651,0.00016931,2]
[366392861,1750228281457,-490.0,0.00016931,2]
[366392862,1750228281468,-490.0,0.00016931,2]
[366392863,1750228281479,-1571.35,0.00016931,2]
[366392864,1750228281489,-490.0,0.00016931,2]
[366392865,1750228281501,-2452.38,0.00016931,2]
[366392866,1750228281511,-807.79,0.00016931,2]
[366392867,1750228281521,-2516.32,0.00016931,2]
[366392868,1750228281531,-1281.0,0.00016931,2]
[366392869,1750228281541,-490.0,0.00016931,2]
[366392870,1750228281551,-4235.28,0.00016931,2]
[366392871,1750228281562,-81.81492046,0.00016931,2]
[366392872,1750228282478,-227.67920305,0.00016411,2]
[366392873,1750228282488,-204.72799344,0.00016521,2]
[366392874,1750228282498,-417.87507954,0.00016931,2]
[366392875,1750228282507,-3466.07344975,0.00016931,2]
[366392876,1750228282520,-2052.48655025,0.00016931,2]
[366392877,1750228282530,-490.0,0.00016931,2]
[366392878,1750228282539,-98.13661986,0.00016931,2]
[366392879,1750228362735,1104.90065951,0.00018001,29]
[366392904,1750229431679,-193.1,0.00013699,2]
[366392905,1750229431689,-203.0,0.00014844,2]
[366392906,1750229431699,-354.32889113,0.00015076,2]
[366392907,1750229431715,-145.67110887,0.00015076,2]
[366392908,1750229431725,-1200.0,0.00015097,2]
[366392909,1750229431734,-11004.49,0.00015098,2]
[366392910,1750229431744,-665.29,0.00015148,2]
[366392911,1750229431756,-168.0,0.00015182,2]
[366392912,1750229431766,-200.0,0.00015236,7]
[366392913,1750229431776,-1000.0,0.00015282,2]
[366392914,1750229431786,-208.21,0.00015308,2]
[366392915,1750229431796,-598.52,0.00015337,2]
[366392916,1750229431806,-180.08,0.00015406,2]
[366392917,1750229431816,-165.62,0.0001553,2]
[366392918,1750229431825,-300.0,0.0001559,2]
[366392919,1750229431835,-5948.06,0.00015591,2]
[366392920,1750229431845,-258.33,0.00015663,2]
[366392921,1750229431855,-207.4,0.00015717,2]
[366392922,1750229431864,-300.0,0.00015831,2]
[366392924,1750229431874,-300.0,0.00015832,2]
[366392926,1750229431883,-605.93468603,0.000159,2]
[366392927,1750229431893,-250.0,0.00015999,2]
[366392928,1750229431902,-499.14,0.00016,2]
[366392929,1750229431911,-507.1,0.00016,2]
[366392930,1750229431920,-492.65,0.00016,2]
[366392931,1750229431930,-302.12,0.00016,2]
[366392932,1750229431939,-492.29,0.00016,2]
[366392933,1750229431948,-505.54,0.00016,2]
[366392945,1750229432231,-300.86,0.00016,2]
[366392947,1750229432241,-503.56,0.00016,2]
[366392949,1750229432251,-302.46,0.00016,2]
[366392951,1750229432260,-506.06,0.00016,2]
[366392953,1750229432271,-605.93468576,0.00016038,2]
[366392956,1750229432281,-626.03463826,0.00016047,2]
[366392958,1750229432292,-312.33167225,0.00016047,2]
[366392960,1750229432303,-739.82057194,0.00016047,2]
[366393445,1750229437408,-2017.37261126,0.00016047,2]
[366393447,1750229437420,-2192.44050629,0.00016047,2]
[366393449,1750229437429,-168.0,0.0001608,2]
[366393451,1750229437438,-2290.694,0.00016109,2]
[366393453,1750229437448,-232.719,0.00016109,2]
[366393455,1750229437457,-1544.83587144,0.00016141,2]
[366393456,1750229437533,-821.73330075,0.00016141,2]
[366393457,1750229437550,-280.407,0.00016141,2]
[366393459,1750229437563,-666.24,0.00016141,2]
[366393461,1750229437575,-329.807,0.00016141,2]
[366393463,1750229437587,-2244.97682781,0.00016141,2]
[366393465,1750229437596,-605.93468576,0.00016176,2]
[366393467,1750229437606,-1608.0,0.00016241,2]
[366393469,1750229437616,-605.93468576,0.00016314,2]
[366393471,1750229437626,-159.56894378,0.00016338,2]
[366393473,1750229437635,-411.72450819,0.00016338,2]
[366393475,1750229437645,-163.78239477,0.00016338,2]
[366393477,1750229437655,-182.14336244,0.00016338,2]
[366393479,1750229437665,-169.54,0.00016349,2]
[366393481,1750229437675,-689.33169043,0.0001639,2]
[366393483,1750229437684,-151.0,0.0001639,2]
[366393485,1750229437694,-5424.91016411,0.000164,2]
[366393487,1750229437706,-513.8731616,0.000164,2]
[366393489,1750229437718,-2405.90858764,0.000164,2]
[366393492,1750229437730,-529.05790942,0.000164,2]
[366393494,1750229437742,-1436.66969089,0.000164,2]
[366393496,1750229437753,-5230.41802002,0.000164,2]
[366393501,1750229437792,-276.05609871,0.000164,2]
[366393748,1750229440191,-5541.0037653,0.000164,2]
[366393770,1750229440392,-22733.02886284,0.000164,2]
[366394201,1750229445401,-203.0,0.00014844,2]
[366394204,1750229445411,-162.93258834,0.000164,2]
[366394825,1750229935455,500.0,0.00013121,2]
[366394828,1750229942703,500.0,0.00013121,2]
[366394829,1750229949073,500.0,0.00013121,2]
[366394830,1750229959809,500.0,0.00013121,2]
[366394831,1750229967210,500.0,0.00013121,2]
[366394832,1750229974329,500.0,0.00013121,2]
[366394833,1750229983347,500.0,0.00013121,2]
[366394834,1750229991559,500.0,0.00013121,2]
[366394836,1750230001282,500.0,0.00013121,2]
[366394838,1750230007789,500.0,0.00013121,2]
[366394839,1750230017605,500.0,0.00013121,2]
[366394840,1750230030862,1035.26,0.00013121,2]
[366394862,1750230551104,4423.0,0.00013,2]
[366394865,1750230611731,202.0,0.00012581,2]
[366394869,1750230631638,-1123.18153849,0.000133,3]
[366394870,1750230631667,-300.0,0.000133,3]
[366394871,1750230631694,-4140.81846151,0.000133,3]
[366394872,1750230631704,-183.44,0.00013699,2]
[366394873,1750230631714,-5564.0,0.000137,5]
[366394874,1750230631723,-300.0,0.00013799,2]
[366394875,1750230631733,-1200.0,0.00013799,2]
[366394876,1750230631743,-202.0,0.00014405,4]
[366394877,1750230631752,-1634.78810206,0.000145,2]
[366394878,1750230631762,-1047.90200057,0.000146,2]
[366394879,1750230631771,-1047.90200037,0.000146,2]
[366394880,1750230631781,-1047.90200037,0.000146,2]
[366394881,1750230631790,-1047.90200037,0.000146,2]
[366394882,1750230631800,-1047.90200037,0.00014728,2]
[366394883,1750230631809,-200.0,0.00014831,7]
[366394884,1750230631819,-2751.0,0.0001484,2]
[366394885,1750230631829,-869.3952441,0.00014934,2]
[366394905,1750230637619,-178.50675627,0.00014934,2]
[366394906,1750230637630,-1000.0,0.00014983,2]
[366394907,1750230637640,-474.46,0.00015014,2]
[366394908,1750230637650,-168.0,0.00015026,2]
[366394909,1750230637660,-420.0,0.00015121,2]
[366394910,1750230637670,-1047.90200037,0.00015141,2]
[366394911,1750230637679,-484.0,0.00015179,2]
[366394912,1750230637689,-390.74,0.00015235,2]
[366394913,1750230637699,-218.0,0.00015296,2]
[366394914,1750230637708,-218.0,0.00015308,2]
[366394915,1750230637718,-150.0,0.00015341,2]
[366394916,1750230637727,-1047.90200037,0.00015348,2]
[366394917,1750230637737,-533.91,0.00015418,2]
[366394918,1750230637746,-168.0,0.00015422,2]
[366394919,1750230637756,-168.0,0.00015482,2]
[366394920,1750230637765,-168.0,0.00015521,2]
[366394921,1750230637775,-154.0,0.00015521,2]
[366394922,1750230637784,-1047.90200037,0.00015555,2]
[366394923,1750230637794,-168.0,0.00015598,2]
[366394924,1750230637804,-150.0,0.00015655,2]
[366394925,1750230637814,-168.0,0.00015663,2]
[366394926,1750230637823,-163.48,0.00015671,2]
[366394927,1750230637833,-163.48,0.00015671,2]
[366394928,1750230637843,-163.48,0.00015671,2]
[366394929,1750230637852,-163.48,0.00015671,2]
[366394930,1750230637862,-1047.90200037,0.00015762,2]
[366394931,1750230637871,-168.0,0.00015818,2]
[366394932,1750230637881,-1164.87,0.00015836,2]
[366394933,1750230637890,-1164.87,0.00015836,2]
[366394934,1750230637899,-150.0,0.00015843,2]
[366394935,1750230637909,-207.4,0.00015846,2]
[366394936,1750230637919,-708.8448766,0.00015846,2]
[366394937,1750230637928,-1957.856,0.00015846,2]
[366394938,1750230637938,-151.0,0.00015846,2]
[366394940,1750230637948,-2030.296672,0.00015901,2]
[366394942,1750230637958,-170.87,0.00015945,2]
[366394945,1750230637968,-170.87,0.00015945,2]
[366394946,1750230637977,-170.87,0.00015945,2]
[366394948,1750230637987,-2105.41764886,0.00015956,2]
[366394950,1750230637996,-1047.90200037,0.00015969,2]
[366394953,1750230638006,-550.38,0.00016,2]
[366394955,1750230638016,-550.38,0.00016,2]
[366394957,1750230638025,-550.38,0.00016,2]
[366394959,1750230638035,-550.38,0.00016,2]
[366394960,1750230638044,-150.0,0.00016006,2]
[366394962,1750230638054,-150.0,0.00016007,2]
[366394965,1750230638064,-2183.31810187,0.00016011,2]
[366394967,1750230638073,-493.62,0.00016047,2]
[366394969,1750230638082,-305.16,0.00016047,2]
[366394971,1750230638092,-505.72,0.00016047,2]
[366394973,1750230638104,-491.71,0.00016047,2]
[366394975,1750230638114,-302.54,0.00016047,2]
[366394977,1750230638124,-507.45,0.00016047,2]
[366394979,1750230638134,-493.39,0.00016047,2]
[366394981,1750230638143,-304.96,0.00016047,2]
[366394983,1750230638154,-2264.10087164,0.00016066,2]
[366394985,1750230638163,-163.48,0.0001611,2]
[366394987,1750230638173,-2347.87260389,0.00016121,2]
[366394989,1750230638184,-302.82,0.00016151,2]
[366394991,1750230638194,-218.0,0.00016152,2]
[366394993,1750230638203,-2324.36,0.00016164,2]
[366394995,1750230638213,-1123.36877715,0.00016176,2]
[366394997,1750230638222,-1047.90200037,0.00016176,2]
[366394999,1750230638231,-150.0,0.00016186,2]
[366395001,1750230638241,-150.0,0.000162,2]
[366395003,1750230638250,-202.0,0.00016229,6]
[366395005,1750230638260,-4903.46,0.00016269,4]
[366395007,1750230638269,-200.0,0.00016288,2]
[366395009,1750230638279,-200.0,0.00016292,2]
[366395011,1750230638297,-150.0,0.00016308,2]
[366395013,1750230638314,-200.0,0.00016325,2]
[366395015,1750230638323,-11332.58647571,0.0001633,3]
[366395017,1750230638333,-1453.0985,0.00016338,2]
[366395019,1750230638342,-278.20681968,0.00016338,2]
[366395021,1750230638352,-179.73286434,0.00016338,2]
[366395023,1750230638363,-159.56894378,0.00016338,2]
[366395025,1750230638373,-168.74388334,0.00016338,2]
[366395027,1750230638382,-159.11587244,0.00016338,2]
[366395029,1750230638391,-200.0,0.00016355,2]
[366395031,1750230638401,-508.2,0.00016359,2]
[366395033,1750230638410,-3333.0,0.00016362,2]
[366395035,1750230638419,-946.0,0.00016362,2]
[366395037,1750230638428,-638.0,0.00016362,2]
[366395039,1750230638438,-803.0,0.00016362,2]
[366395041,1750230638447,-1674.0,0.00016362,2]
[366395043,1750230638456,-427.801,0.00016362,2]
[366395045,1750230638466,-884.0,0.00016362,2]
[366395047,1750230638475,-1047.90200037,0.00016383,2]
[366395049,1750230638484,-200.0,0.00016392,2]
[366395051,1750230638493,-3783.26047096,0.000164,2]
[366395053,1750230638502,-500.0,0.00016409,2]
[366395055,1750230638512,-179.73286433,0.00016411,2]
[366395057,1750230638521,-125604.36664516,0.00016437,2]
[366395058,1750230638530,-2629.5965493,0.00016437,2]
[366395060,1750230638539,-499.25634281,0.00016437,2]
[366395063,1750230638549,-555.23070961,0.00016437,2]
[366395065,1750230638558,-376.41568255,0.00016437,2]
[366395067,1750230638567,-326.99018462,0.00016437,2]
[366395069,1750230638577,-307.87758743,0.00016437,2]
[366395070,1750230638586,-911.0,0.00016438,2]
[366395072,1750230638596,-217.22882888,0.00016438,2]
[366395074,1750230638606,-491.93237683,0.00016438,2]
[366395076,1750230638616,-490.61557102,0.00016438,2]
[366395079,1750230638626,-490.0,0.00016438,2]
[366395081,1750230638635,-490.98754556,0.00016438,2]
[366395082,1750230638645,-490.0,0.00016438,2]
[366395084,1750230638654,-490.0,0.00016438,2]
[366395087,1750230638663,-490.0,0.00016438,2]
[366395089,1750230638673,-490.0,0.00016438,2]
[366395091,1750230638682,-490.0,0.00016438,2]
[366395092,1750230638691,-836.87,0.00016438,2]
[366395095,1750230638701,-490.0,0.00016438,2]
[366395097,1750230638710,-490.0,0.00016438,2]
[366395099,1750230638720,-490.0,0.00016438,2]
[366395101,1750230638729,-490.0,0.00016438,2]
[366395102,1750230638739,-490.0,0.00016438,2]
[366395105,1750230638748,-1231.49,0.00016438,2]
[366395106,1750230638757,-525.5,0.00016438,2]
[366395108,1750230638766,-490.0,0.00016438,2]
[366395110,1750230638776,-490.0,0.00016438,2]
[366395113,1750230638786,-490.0,0.00016438,2]
[366395115,1750230638795,-595.3,0.00016438,2]
[366395117,1750230638804,-701.12,0.00016438,2]
[366395119,1750230638814,-490.0,0.00016438,2]
[366395121,1750230638823,-490.0,0.00016438,2]
[366395122,1750230638832,-490.0,0.00016438,2]
[366395125,1750230638841,-578.89,0.00016438,2]
[366395126,1750230638851,-1212.01,0.00016438,2]
[366395129,1750230638862,-490.0,0.00016438,2]
[366395130,1750230638871,-816.96,0.00016438,2]
[366395132,1750230638881,-490.0,0.00016438,2]
[366395134,1750230638890,-490.0,0.00016438,2]
[366395136,1750230638900,-490.0,0.00016438,2]
[366395138,1750230638909,-490.0,0.00016438,2]
[366395141,1750230638918,-1003.3,0.00016438,2]
[366395142,1750230638928,-700.34,0.00016438,2]
[366395145,1750230638938,-490.0,0.00016438,2]
[366395147,1750230638947,-494.48,0.00016438,2]
[366395149,1750230638957,-490.0,0.00016438,2]
[366395151,1750230638967,-490.0,0.00016438,2]
[366395153,1750230638976,-490.0,0.00016438,2]
[366395155,1750230638986,-524.12,0.00016438,2]
[366395156,1750230638995,-490.0,0.00016438,2]
[366395158,1750230639005,-490.0,0.00016438,2]
[366395160,1750230639014,-519.85,0.00016438,2]
[366395162,1750230639023,-490.0,0.00016438,2]
[366395164,1750230639032,-417.13208806,0.00016438,2]
[366395166,1750230639041,-490.0,0.00016438,2]
[366395168,1750230639051,-490.0,0.00016438,2]
[366395170,1750230639060,-490.0,0.00016438,2]
[366395172,1750230639070,-490.0,0.00016438,2]
[366395174,1750230639079,-671.43,0.00016438,2]
[366395176,1750230639089,-490.0,0.00016438,2]
[366395178,1750230639101,-1386.7,0.00016438,2]
[366395179,1750230639112,-243.180948,0.00016438,2]
[366395180,1750230639122,-490.0,0.00016438,2]
[366395181,1750230639132,-490.0,0.00016438,2]
[366395182,1750230639142,-490.0,0.00016438,2]
[366395183,1750230639152,-490.0,0.00016438,2]
[366395184,1750230639161,-490.0,0.00016438,2]
[366395185,1750230639171,-490.0,0.00016438,2]
[366395186,1750230639181,-490.0,0.00016438,2]
[366395187,1750230639191,-490.0,0.00016438,2]
[366395189,1750230639200,-632.87,0.00016438,2]
[366395190,1750230639210,-490.0,0.00016438,2]
[366395192,1750230639219,-917.54,0.00016438,2]
[366395194,1750230639228,-490.0,0.00016438,2]
[366395196,1750230639237,-490.0,0.00016438,2]
[366395198,1750230639247,-490.0,0.00016438,2]
[366395200,1750230639256,-613.36,0.00016438,2]
[366395202,1750230639265,-490.0,0.00016438,2]
[366395204,1750230639274,-490.0,0.00016438,2]
[366395206,1750230639285,-490.0,0.00016438,2]
[366395208,1750230639294,-490.0,0.00016438,2]
[366395210,1750230639304,-490.0,0.00016438,2]
[366395212,1750230639314,-490.0,0.00016438,2]
[366395214,1750230639323,-490.0,0.00016438,2]
[366395216,1750230639333,-490.0,0.00016438,2]
[366395218,1750230639342,-490.0,0.00016438,2]
[366395220,1750230639352,-490.0,0.00016438,2]
[366395222,1750230639361,-490.0,0.00016438,2]
[366395224,1750230639371,-490.0,0.00016438,2]
[366395226,1750230639380,-490.0,0.00016438,2]
[366395228,1750230639390,-713.78,0.00016438,2]
[366395230,1750230639399,-490.0,0.00016438,2]
[366395232,1750230639408,-490.0,0.00016438,2]
[366395234,1750230639417,-519.23,0.00016438,2]
[366395236,1750230639427,-495.84,0.00016438,2]
[366395238,1750230639437,-490.0,0.00016438,2]
[366395240,1750230639446,-490.0,0.00016438,2]
[366395242,1750230639455,-490.0,0.00016438,2]
[366395244,1750230639465,-151.161231,0.00016438,2]
[366395246,1750230639474,-490.0,0.00016438,2]
[366395248,1750230639483,-490.0,0.00016438,2]
[366395250,1750230639492,-490.0,0.00016438,2]
[366395252,1750230639501,-490.0,0.00016438,2]
[366395254,1750230639510,-829.31,0.00016438,2]
[366395256,1750230639520,-490.0,0.00016438,2]
[366395258,1750230639529,-490.0,0.00016438,2]
[366395260,1750230639539,-461.39569436,0.00016438,2]
[366395262,1750230639548,-490.0,0.00016438,2]
[366395264,1750230639557,-1500.65,0.00016438,2]
[366395266,1750230639566,-490.0,0.00016438,2]
[366395268,1750230639576,-852.7,0.00016438,2]
[366395270,1750230639585,-490.0,0.00016438,2]
[366395272,1750230639594,-490.0,0.00016438,2]
[366395274,1750230639603,-769.61,0.00016438,2]
[366395276,1750230639613,-490.0,0.00016438,2]
[366395278,1750230639623,-490.0,0.00016438,2]
[366395280,1750230639632,-471.84794786,0.00016438,2]
[366395282,1750230639642,-490.0,0.00016438,2]
[366395284,1750230639652,-1110.42,0.00016438,2]
[366395286,1750230639661,-490.0,0.00016438,2]
[366395288,1750230639670,-490.0,0.00016438,2]
[366395290,1750230639680,-490.0,0.00016438,2]
[366395292,1750230639689,-443.78377527,0.00016438,2]
[366395294,1750230639699,-490.0,0.00016438,2]
[366395296,1750230639708,-490.0,0.00016438,2]
[366395298,1750230639717,-935.79,0.00016438,2]
[366395300,1750230639727,-756.89,0.00016438,2]
[366395302,1750230639736,-490.0,0.00016438,2]
[366395304,1750230639746,-490.0,0.00016438,2]
[366395306,1750230639756,-1296.85,0.00016438,2]
[366395308,1750230639765,-490.0,0.00016438,2]
[366395310,1750230639775,-490.0,0.00016438,2]
[366395312,1750230639784,-592.13,0.00016438,2]
[366395314,1750230639793,-298.07663356,0.00016438,2]
[366395315,1750230639802,-552.51,0.00016438,2]
[366395318,1750230639813,-490.0,0.00016438,2]
[366395320,1750230639823,-490.0,0.00016438,2]
[366395322,1750230639832,-490.0,0.00016438,2]
[366395323,1750230639841,-500.75,0.00016438,2]
[366395325,1750230639850,-490.0,0.00016438,2]
[366395327,1750230639861,-490.0,0.00016438,2]
[366395330,1750230639872,-1059.21,0.00016438,2]
[366395331,1750230639881,-490.0,0.00016438,2]
[366395334,1750230639891,-490.0,0.00016438,2]
[366395336,1750230639902,-490.0,0.00016438,2]
[366395338,1750230639911,-1095.74,0.00016438,2]
[366395340,1750230639921,-606.02,0.00016438,2]
[366395342,1750230639930,-418.60019253,0.00016438,2]
[366395344,1750230639940,-754.98,0.00016438,2]
[366395346,1750230639950,-490.0,0.00016438,2]
[366395348,1750230639960,-490.0,0.00016438,2]
[366395350,1750230639969,-520.3,0.00016438,2]
[366395352,1750230639979,-490.0,0.00016438,2]
[366395354,1750230639988,-580.19,0.00016438,2]
[366395356,1750230639997,-490.0,0.00016438,2]
[366395358,1750230640007,-490.0,0.00016438,2]
[366395359,1750230640016,-490.0,0.00016438,2]
[366395362,1750230640026,-490.0,0.00016438,2]
[366395364,1750230640035,-490.0,0.00016438,2]
[366395365,1750230640044,-490.0,0.00016438,2]
[366395367,1750230640053,-490.0,0.00016438,2]
[366395369,1750230640062,-535.7,0.00016438,2]
[366395371,1750230640072,-490.0,0.00016438,2]
[366395373,1750230640081,-1147.76,0.00016438,2]
[366395375,1750230640090,-204.240544,0.00016438,2]
[366395377,1750230640104,-518.23,0.00016438,2]
[366395379,1750230640113,-490.0,0.00016438,2]
[366395382,1750230640123,-659.86,0.00016438,2]
[366395384,1750230640132,-300.0,0.00016438,2]
[366395385,1750230640142,-326.42,0.00016438,2]
[366395388,1750230640152,-1263.87,0.00016438,2]
[366395390,1750230640161,-637.08,0.00016438,2]
[366395392,1750230640171,-571.5,0.00016438,2]
[366395422,1750230640454,-537.07,0.00016438,2]
[366395424,1750230640464,-1081.49,0.00016438,2]
[366395426,1750230640473,-1704.7,0.00016438,2]
[366395428,1750230640483,-161.986491,0.00016438,2]
[366395430,1750230640492,-490.0,0.00016438,2]
[366395432,1750230640501,-1075.53,0.00016438,2]
[366395434,1750230640511,-490.0,0.00016438,2]
[366395436,1750230640520,-490.0,0.00016438,2]
[366395438,1750230640530,-490.0,0.00016438,2]
[366395440,1750230640540,-490.0,0.00016438,2]
[366395442,1750230640550,-825.79,0.00016438,2]
[366395445,1750230640559,-583.34,0.00016438,2]
[366395447,1750230640569,-490.0,0.00016438,2]
[366395448,1750230640578,-682.35,0.00016438,2]
[366395451,1750230640588,-490.0,0.00016438,2]
[366395453,1750230640597,-490.0,0.00016438,2]
[366395455,1750230640607,-490.0,0.00016438,2]
[366395457,1750230640617,-1014.85,0.00016438,2]
[366395459,1750230640626,-714.83,0.00016438,2]
[366395461,1750230640637,-490.0,0.00016438,2]
[366395463,1750230640646,-490.0,0.00016438,2]
[366395465,1750230640656,-698.38,0.00016438,2]
[366395467,1750230640666,-490.0,0.00016438,2]
[366395469,1750230640676,-1313.12,0.00016438,2]
[366395471,1750230640685,-490.0,0.00016438,2]
[366395473,1750230640695,-652.96,0.00016438,2]
[366395475,1750230640704,-739.91,0.00016438,2]
[366395477,1750230640714,-490.0,0.00016438,2]
[366395479,1750230640724,-490.0,0.00016438,2]
[366395481,1750230640734,-504.11665116,0.00016438,2]
[366395483,1750230640744,-490.0,0.00016438,2]
[366395485,1750230640754,-151.0,0.00016438,2]
[366395487,1750230640763,-498.45,0.00016438,2]
[366395489,1750230640773,-490.0,0.00016438,2]
[366395491,1750230640783,-490.0,0.00016438,2]
[366395493,1750230640793,-853.48,0.00016438,2]
[366395495,1750230640803,-1000.8,0.00016438,2]
[366395497,1750230640813,-490.0,0.00016438,2]
[366395499,1750230640824,-621.55,0.00016438,2]
[366395501,1750230640834,-1452.18,0.00016438,2]
[366395503,1750230640844,-490.0,0.00016438,2]
[366395505,1750230640855,-490.0,0.00016438,2]
[366395507,1750230640864,-838.71,0.00016438,2]
[366395509,1750230640874,-490.0,0.00016438,2]
[366395511,1750230640883,-490.0,0.00016438,2]
[366395513,1750230640894,-490.0,0.00016438,2]
[366395515,1750230640904,-1150.33,0.00016438,2]
[366395517,1750230640914,-626.02,0.00016438,2]
[366395519,1750230640924,-734.67,0.00016438,2]
[366395521,1750230640934,-490.0,0.00016438,2]
[366395523,1750230640943,-490.0,0.00016438,2]
[366395525,1750230640953,-490.0,0.00016438,2]
[366395527,1750230640963,-1357.82,0.00016438,2]
[366395529,1750230640973,-707.84,0.00016438,2]
[366395531,1750230640983,-944.66,0.00016438,2]
[366395533,1750230640993,-493.63,0.00016438,2]
[366395535,1750230641003,-1344.39,0.00016438,2]
[366395537,1750230641013,-561.14,0.00016438,2]
[366395539,1750230641023,-490.0,0.00016438,2]
[366395541,1750230641033,-490.0,0.00016438,2]
[366395543,1750230641043,-490.0,0.00016438,2]
[366395545,1750230641052,-490.0,0.00016438,2]
[366395547,1750230641062,-490.0,0.00016438,2]
[366395549,1750230641071,-490.0,0.00016438,2]
[366395551,1750230641081,-490.0,0.00016438,2]
[366395553,1750230641091,-562.97,0.00016438,2]
[366395555,1750230641101,-490.0,0.00016438,2]
[366395557,1750230641112,-825.62,0.00016438,2]
[366395559,1750230641122,-490.0,0.00016438,2]
[366395561,1750230641132,-490.0,0.00016438,2]
[366395563,1750230641143,-490.0,0.00016438,2]
[366395565,1750230641152,-490.0,0.00016438,2]
[366395567,1750230641163,-490.0,0.00016438,2]
[366395569,1750230641172,-618.79,0.00016438,2]
[366395571,1750230641182,-506.2,0.00016438,2]
[366395573,1750230641192,-490.0,0.00016438,2]
[366395575,1750230641201,-490.0,0.00016438,2]
[366395577,1750230641211,-825.67,0.00016438,2]
[366395579,1750230641220,-757.49,0.00016438,2]
[366395581,1750230641229,-490.0,0.00016438,2]
[366395583,1750230641239,-490.0,0.00016438,2]
[366395585,1750230641248,-783.98,0.00016438,2]
[366395587,1750230641257,-490.0,0.00016438,2]
[366395589,1750230641266,-490.0,0.00016438,2]
[366395591,1750230641276,-151.466401,0.00016438,2]
[366395593,1750230641286,-490.0,0.00016438,2]
[366395596,1750230641296,-490.0,0.00016438,2]
[366395598,1750230641305,-967.69,0.00016438,2]
[366395600,1750230641314,-620.36,0.00016438,2]
[366395601,1750230641323,-152.170871,0.00016438,2]
[366395604,1750230641333,-1204.24,0.00016438,2]
[366395606,1750230641342,-929.16,0.00016438,2]
[366395608,1750230641351,-490.0,0.00016438,2]
[366395610,1750230641363,-490.0,0.00016438,2]